fUST/lending_fUST_20240126
["ID","MTS","AMOUNT","RATE_DAILY","PERIOD"]
[312779836,1706209839946,-155.0,0.00034474,2]
[312779837,1706209839956,-150.0,0.00034999,2]
[312779838,1706209839965,-500.0,0.00034999,10]
[312779839,1706209839974,-510.71297037,0.00034999,10]
[312779840,1706209839984,-409.32301523,0.00034999,10]
[312779841,1706209839996,-500.0,0.00034999,10]
[312779842,1706209840006,-500.0,0.00034999,10]
[312779843,1706209840015,-500.0,0.00034999,10]
[312779845,1706209840024,-500.0,0.00034999,10]
[312779846,1706209840034,-500.0,0.00034999,10]
[312779847,1706209840044,-500.0,0.00034999,10]
[312779848,1706209840054,-500.0,0.00034999,10]
[312779849,1706209840063,-500.0,0.00034999,10]
[312779850,1706209840074,-500.0,0.00034999,10]
[312779851,1706209840084,-500.0,0.00034999,10]
[312779852,1706209840093,-370.14469953,0.00034999,10]
[312779853,1706209840102,-500.0,0.00034999,10]
[312779854,1706209840111,-500.0,0.00034999,7]
[312779855,1706209840121,-500.0,0.00034999,10]
[312779856,1706209840131,-500.0,0.00034999,10]
[312779857,1706209840139,-500.0,0.00034999,10]
[312779858,1706209840148,-500.0,0.00034999,10]
[312779859,1706209840157,-500.0,0.00034999,10]
[312779860,1706209840167,-500.0,0.00034999,10]
[312779861,1706209840176,-500.0,0.00034999,10]
[312779862,1706209840185,-500.0,0.00034999,10]
[312779863,1706209840194,-500.0,0.00034999,7]
[312779864,1706209840204,-569.06173158,0.00034999,10]
[312779865,1706209840213,-500.0,0.00034999,10]
[312779866,1706209840222,-500.0,0.00034999,10]
[312779867,1706209840231,-500.0,0.00034999,10]
[312779868,1706209840240,-500.0,0.00034999,10]
[312779869,1706209840249,-500.0,0.00034999,10]
[312779870,1706209840258,-500.0,0.00034999,10]
[312779871,1706209840268,-612.51477852,0.00034999,7]
[312779872,1706209840277,-590.11891124,0.00034999,10]
[312779873,1706209840286,-500.0,0.00034999,10]
[312779874,1706209840295,-500.0,0.00034999,10]
[312779875,1706209840304,-500.0,0.00034999,10]
[312779876,1706209840313,-500.0,0.00034999,10]
[312779877,1706209840322,-500.0,0.00034999,10]
[312779878,1706209840331,-500.0,0.00034999,10]
[312779879,1706209840341,-500.0,0.00034999,10]
[312779880,1706209840350,-500.0,0.00034999,10]
[312779881,1706209840359,-500.0,0.00034999,10]
[312779882,1706209840369,-500.0,0.00034999,10]
[312779883,1706209840379,-500.0,0.00034999,10]
[312779884,1706209840388,-500.0,0.00034999,10]
[312779885,1706209840397,-500.0,0.00034999,10]
[312779886,1706209840407,-500.0,0.00034999,10]
[312779887,1706209840416,-500.0,0.00034999,10]
[312779888,1706209840426,-500.0,0.00034999,10]
[312779889,1706209840437,-500.0,0.00034999,10]
[312779890,1706209840446,-527.39032001,0.00034999,10]
[312779891,1706209840457,-500.0,0.00034999,10]
[312779892,1706209840466,-500.0,0.00034999,10]
[312779893,1706209840476,-500.0,0.00034999,10]
[312779894,1706209840485,-500.0,0.00034999,10]
[312779895,1706209840495,-500.0,0.00034999,10]
[312779896,1706209840504,-500.0,0.00034999,10]
[312779897,1706209840514,-500.0,0.00034999,10]
[312779898,1706209840523,-500.0,0.00034999,10]
[312779899,1706209840534,-500.0,0.00034999,10]
[312779900,1706209840544,-500.0,0.00034999,10]
[312779901,1706209840554,-500.0,0.00034999,10]
[312779902,1706209840565,-570.59262644,0.00034999,10]
[312779903,1706209840574,-500.0,0.00034999,10]
[312779904,1706209840662,-500.0,0.00034999,10]
[312779905,1706209840671,-500.0,0.00034999,10]
[312779906,1706209840682,-218.10520657,0.00034999,10]
[312779907,1706209840698,-281.89479343,0.00034999,10]
[312779908,1706209840708,-500.0,0.00034999,10]
[312779909,1706209840717,-200.32522218,0.00034999,10]
[312779929,1706209844238,-199.3339408,0.00029315,2]
[312779930,1706209844248,-153.0,0.00029315,2]
[312779931,1706209844258,-299.67477782,0.00034999,10]
[312779932,1706209844267,-251.00097901,0.00034999,10]
[312779943,1706209846099,-153.0,0.00029315,2]
[312779944,1706209846112,-1847.0,0.0003499,3]
[312780011,1706211034499,-3970.33105698,0.00024921,2]
[312780012,1706211034508,-1416.02167727,0.00024922,2]
[312780013,1706211034516,-180.0,0.00024922,2]
[312780014,1706211034525,-426.19756797,0.00024922,2]
[312780015,1706211034535,-154.98450155,0.00024923,4]
[312780017,1706211034545,-1583.23422085,0.00024923,2]
[312780019,1706211034554,-9607.94579994,0.00024937,2]
[312780106,1706211038219,-15292.05420006,0.00024937,2]
[312780109,1706211038230,-4725.91421399,0.00025,2]
[312780111,1706211038240,-7385.90525508,0.00025,2]
[312780113,1706211038249,-154.98450155,0.00025,2]
[312780115,1706211038259,-167.777172,0.00025558,2]
[312780117,1706211038268,-290.53836744,0.00027,2]
[312780119,1706211038278,-200.0,0.0002743,15]
[312780121,1706211038288,-470.87385711,0.00027786,2]
[312780123,1706211038298,-19246.65,0.00027786,3]
[312780125,1706211038309,-23095.98,0.00027788,3]
[312780127,1706211038319,-2074.94658461,0.00027796,2]
[312780129,1706211038328,-500.0,0.00027796,2]
[312780131,1706211038338,-1266.95335862,0.00027796,2]
[312780133,1706211038346,-421.27166736,0.00027796,2]
[312780135,1706211038356,-4011.78855735,0.00027796,2]
[312780136,1706211038367,-1916.72029117,0.00027796,2]
[312780139,1706211038377,-557.41463037,0.00027796,2]
[312780141,1706211038386,-309.31860756,0.00027796,2]
[312780143,1706211038396,-713.25472283,0.00027796,2]
[312780144,1706211038407,-154.98450155,0.00027796,2]
[312780147,1706211038418,-311.91244819,0.00027796,2]
[312780149,1706211038427,-8653.83689169,0.00027797,2]
[312780151,1706211038436,-1198.71036477,0.00027797,2]
[312780153,1706211038446,-323.23376189,0.00027797,2]
[312780155,1706211038455,-276000.0,0.00027798,2]
[312780157,1706211038464,-161.66762662,0.00028377,2]
[312780159,1706211038473,-154.98450155,0.00029,2]
[312780161,1706211038483,-1932.44477539,0.00029,2]
[312780163,1706211038493,-157.3764171,0.00029315,2]
[312780165,1706211038502,-383.3948546,0.00029315,2]
[312780167,1706211038511,-159.3657322,0.00029315,2]
[312780169,1706211038520,-199.3339408,0.00029315,2]
[312780171,1706211038529,-153.0,0.00029315,2]
[312780173,1706211038538,-213.1405558,0.00029315,2]
[312780175,1706211038548,-153.0,0.00029315,2]
[312780177,1706211038559,-199.3339408,0.00029315,2]
[312780179,1706211038567,-153.0,0.00029315,2]
[312780181,1706211038577,-153.0000001,0.00029315,2]
[312780183,1706211038586,-199.3339408,0.00029315,2]
[312780184,1706211038595,-153.0,0.00029315,2]
[312780186,1706211038604,-153.0,0.00029378,2]
[312780189,1706211038613,-171.7059798,0.00029378,2]
[312780190,1706211038623,-250.5513808,0.00029378,2]
[312780193,1706211038632,-153.0,0.00029378,2]
[312780194,1706211038642,-153.0,0.00029652,2]
[312780197,1706211038653,-166.666666,0.00029913,2]
[312780199,1706211038662,-350.0,0.00029999,2]
[312780201,1706211038671,-512.38921039,0.00029999,2]
[312780203,1706211038680,-170.03961878,0.00029999,2]
[312780205,1706211038689,-500.0,0.00029999,2]
[312780207,1706211038698,-500.0,0.00029999,2]
[312780209,1706211038707,-500.0,0.00029999,2]
[312780211,1706211038717,-500.0,0.00029999,2]
[312780213,1706211038726,-571.33828928,0.00029999,2]
[312780215,1706211038736,-500.0,0.00029999,2]
[312780217,1706211038745,-165.75185927,0.00029999,2]
[312780219,1706211038754,-377.65972868,0.00029999,2]
[312780221,1706211038764,-291.31420188,0.0003,3]
[312780223,1706211038774,-154.98450155,0.0003,4]
[312780225,1706211038783,-1000.0,0.0003,4]
[312780226,1706211038793,-2372.54255137,0.0003,2]
[312780227,1706211038803,-139264.62830083,0.0003,4]
[312780228,1706211038812,-155.74648817,0.0003,4]
[312780229,1706211038822,-244.31917233,0.0003,4]
[312780230,1706211038831,-195.4790082,0.0003,2]
[312780231,1706211038840,-688.78830185,0.0003,4]
[312780232,1706211038850,-202.0,0.0003,2]
[312780233,1706211038859,-153.0,0.00030137,2]
[312780234,1706211038869,-306.0,0.00030137,2]
[312780235,1706211038878,-199.3339408,0.00030137,2]
[312780236,1706211038888,-199.3339408,0.00030137,2]
[312780237,1706211038898,-199.3339408,0.00030137,2]
[312780238,1706211038907,-199.3339408,0.00030137,2]
[312780239,1706211038916,-199.3339408,0.00030137,2]
[312780240,1706211038926,-199.3339408,0.00030137,2]
[312780241,1706211038935,-391.9504907,0.00030137,2]
[312780242,1706211038944,-153.0,0.00030137,2]
[312780243,1706211038954,-153.0,0.00030137,2]
[312780244,1706211038963,-153.0,0.00030137,2]
[312780245,1706211038973,-153.0,0.00030137,2]
[312780246,1706211038982,-153.0,0.00030137,2]
[312780247,1706211038992,-153.0,0.00030137,2]
[312780248,1706211039001,-153.0,0.00030137,2]
[312780249,1706211039010,-153.0,0.00030137,2]
[312780250,1706211039020,-153.0,0.00030137,2]
[312780251,1706211039030,-153.0,0.00030137,2]
[312780252,1706211039039,-153.0,0.00030137,2]
[312780253,1706211039048,-153.0,0.00030137,2]
[312780254,1706211039058,-199.3339408,0.00030137,2]
[312780255,1706211039068,-199.3339408,0.00030137,2]
[312780256,1706211039077,-153.0,0.00030137,2]
[312780257,1706211039087,-153.0,0.00030137,2]
[312780258,1706211039097,-153.0,0.00030137,2]
[312780259,1706211039106,-153.0,0.00030137,2]
[312780260,1706211039115,-153.0,0.00030137,2]
[312780261,1706211039125,-157.894736,0.00030137,2]
[312780262,1706211039134,-173.040148,0.00030137,2]
[312780263,1706211039143,-280.0,0.00030173,15]
[312780264,1706211039152,-153.0,0.000302,2]
[312780265,1706211039161,-153.0,0.000302,2]
[312780266,1706211039171,-153.0,0.000302,2]
[312780267,1706211039180,-153.0,0.000302,2]
[312780268,1706211039188,-153.0,0.000302,2]
[312780269,1706211039198,-153.0,0.000302,2]
[312780270,1706211039207,-153.0,0.000302,2]
[312780271,1706211039216,-199.3339408,0.000302,2]
[312780272,1706211039225,-153.0,0.000302,2]
[312780273,1706211039234,-153.0,0.000302,2]
[312780274,1706211039243,-153.0,0.000302,2]
[312780275,1706211039252,-153.0,0.000302,2]
[312780276,1706211039261,-153.0,0.000302,2]
[312780277,1706211039270,-153.0,0.000302,2]
[312780278,1706211039279,-199.3339408,0.000302,2]
[312780279,1706211039288,-153.0,0.000302,2]
[312780280,1706211039297,-153.0,0.000302,2]
[312780281,1706211039307,-153.0,0.000302,2]
[312780282,1706211039316,-153.0,0.000302,2]
[312780283,1706211039326,-153.0,0.000302,2]
[312780284,1706211039335,-199.3339408,0.000302,2]
[312780285,1706211039344,-157.894736,0.00030746,2]
[312780286,1706211039353,-646.49007194,0.00030791,2]
[312780287,1706211039366,-326.58097042,0.00031,7]
[312780288,1706211039374,-173.040148,0.00031115,2]
[312780289,1706211039383,-157.894736,0.00031355,2]
[312780290,1706211039393,-157.894736,0.00031963,2]
[312780291,1706211039402,-173.040148,0.00032094,2]
[312780292,1706211039411,-621.3245036,0.00032331,2]
[312780293,1706211039420,-6831.93692271,0.00032368,2]
[312780294,1706211039429,-157.894736,0.00032572,2]
[312780295,1706211039438,-26240.767231,0.00032877,2]
[312780296,1706211039447,-276.02916029,0.00033,2]
[312780297,1706211039456,-166.0,0.00033,2]
[312780298,1706211039465,-353.0,0.00033,2]
[312780299,1706211039475,-202.0,0.00033,2]
[312780300,1706211039484,-202.0,0.00033,2]
[312780301,1706211039493,-173.040148,0.00033072,2]
[312780302,1706211039503,-353.0,0.00033151,2]
[312780303,1706211039512,-157.894736,0.00033181,2]
[312780304,1706211039521,-391.0,0.0003319,15]
[312780305,1706211039530,-157.894736,0.0003379,2]
[312780306,1706211039539,-620.06622518,0.00033947,2]
[312780307,1706211039548,-173.040148,0.00034051,2]
[312780308,1706211039558,-246.5520124,0.00034247,2]
[312780309,1706211039567,-157.894736,0.00034399,2]
[312780310,1706211039578,-233.62993,0.000344,2]
[312780311,1706211039588,-353.0,0.00034521,2]
[312780312,1706211039597,-161.66762662,0.000349,2]
[312780313,1706211039606,-2185.60914023,0.0003498,2]
[312780314,1706211039616,-154.98450155,0.0003499,7]
[312780315,1706211039624,-2801.88705417,0.0003499,4]
[312780316,1706211039633,-300.0,0.0003499,4]
[312780317,1706211039643,-375.96014132,0.0003499,4]
[312780318,1706211039652,-1467.24755759,0.0003499,2]
[312780319,1706211039661,-407.93473902,0.0003499,4]
[312780320,1706211039670,-2454.66425031,0.0003499,2]
[312780321,1706211039679,-6129.67718162,0.0003499,4]
[312780322,1706211039688,-454.70291986,0.0003499,4]
[312780323,1706211039698,-351.67065141,0.0003499,4]
[312780324,1706211039707,-687.23319626,0.0003499,4]
[312780325,1706211039716,-499.1198602,0.0003499,4]
[312780326,1706211039725,-846.2128653,0.00035,2]
[312780327,1706211039735,-476.44274189,0.00035,4]
[312780328,1706211039745,-657.40715545,0.00035,7]
[312780329,1706211039754,-2359.3181247,0.00035,2]
[312780330,1706211039764,-184.66976843,0.00035,2]
[312780331,1706211039773,-48717.90607386,0.00035,2]
[312780332,1706211039782,-10172.98608814,0.00035,2]
[312780333,1706211039791,-561.18862964,0.00035,2]
[312780334,1706211039800,-154.98450155,0.00035,2]
[312780335,1706211039810,-157.894736,0.00035008,2]
[312780336,1706211039819,-173.040148,0.00035029,2]
[312780337,1706211039828,-620.00000041,0.00035379,2]
[312780338,1706211039837,-6683.11451686,0.00035474,4]
[312780339,1706211039846,-50000.0,0.00035474,4]
[312780340,1706211039856,-50000.0,0.00035474,4]
[312780341,1706211039865,-50000.0,0.00035474,4]
[312780342,1706211039873,-14635.26076692,0.00035474,3]
[312780343,1706211039882,-1081.1,0.00035616,2]
[312780344,1706211039891,-1081.1,0.00035616,2]
[312780345,1706211039900,-1081.1,0.00035616,2]
[312780346,1706211039909,-1081.1,0.00035616,2]
[312780347,1706211039918,-1081.1,0.00035616,2]
[312780348,1706211039927,-1081.1,0.00035616,2]
[312780349,1706211039936,-1081.1,0.00035616,2]
[312780350,1706211039945,-1081.1,0.00035616,2]
[312780351,1706211039954,-1081.1,0.00035616,2]
[312780352,1706211039963,-1081.1,0.00035616,2]
[312780353,1706211039973,-1081.1,0.00035616,2]
[312780354,1706211039982,-1081.1,0.00035616,2]
[312780355,1706211039991,-1081.1,0.00035616,2]
[312780356,1706211040000,-1081.1,0.00035616,2]
[312780357,1706211040009,-1081.1,0.00035616,2]
[312780358,1706211040018,-1081.1,0.00035616,2]
[312780359,1706211040027,-1081.1,0.00035616,2]
[312780360,1706211040117,-1081.1,0.00035616,2]
[312780361,1706211040126,-1081.1,0.00035616,2]
[312780362,1706211040135,-1081.1,0.00035616,2]
[312780363,1706211040145,-1081.1,0.00035616,2]
[312780364,1706211040154,-1081.1,0.00035616,2]
[312780365,1706211040163,-1081.1,0.00035616,2]
[312780366,1706211040172,-1081.19102445,0.00035616,2]
[312780367,1706211040181,-157.894736,0.00035616,2]
[312780368,1706211040190,-620.00331126,0.00035645,2]
[312780369,1706211040199,-155.16244617,0.00035998,2]
[312780370,1706211040207,-150.0,0.00035999,2]
[312780371,1706211040216,-154.9690062,0.00036,4]
[312780372,1706211040225,-202.0,0.00036,2]
[312780373,1706211040234,-202.0,0.00036,2]
[312780374,1706211040243,-173.040148,0.00036008,2]
[312780375,1706211040252,-157.894736,0.00036225,2]
[312780376,1706211040261,-358.0,0.00036247,2]
[312780377,1706211040271,-200.0,0.00036509,15]
[312780378,1706211040279,-348.0,0.00036509,15]
[312780379,1706211040288,-157.894736,0.00036834,2]
[312780380,1706211040298,-173.040148,0.00036986,2]
[312780381,1706211040308,-150.0,0.00036998,2]
[312780382,1706211040317,-620.00000002,0.00037147,2]
[312780383,1706211040326,-217.33605951,0.0003724,2]
[312780384,1706211040336,-620.00016556,0.00037427,2]
[312780385,1706211040345,-157.894736,0.00037443,2]
[312780386,1706211040358,-72152.42646466,0.00037736,2]
[312780387,1706211040367,-173.040148,0.00037965,2]
[312780388,1706211040376,-1000.0,0.00038023,10]
[312780389,1706211040385,-157.894736,0.00038052,2]
[312780390,1706211040395,-154.9690062,0.00038191,7]
[312780391,1706211040404,-2147.50028627,0.000385,4]
[312780392,1706211040412,-157.894736,0.0003866,2]
[312780393,1706211040422,-353.0,0.00038663,14]
[312780394,1706211040430,-125711.45608955,0.000388,10]
[312780395,1706211040440,-173.040148,0.00038943,2]
[312780396,1706211040450,-202.0,0.00039,2]
[312780397,1706211040459,-157.894736,0.00039269,2]
[312780398,1706211040468,-620.00000828,0.00039298,2]
[312780399,1706211040477,-276.87,0.000394,4]
[312780400,1706211040487,-976.79905731,0.00039451,2]
[312780401,1706211040496,-157.894736,0.00039878,2]
[312780402,1706211040505,-173.040148,0.00039922,2]
[312780403,1706211040514,-2810.45212724,0.0004,2]
[312780404,1706211040524,-150.0,0.0004,27]
[312780405,1706211040534,-3927.87882193,0.0004,2]
[312780406,1706211040543,-200.0,0.0004016,30]
[312780407,1706211040553,-368.0,0.0004016,30]
[312780408,1706211040563,-157.894736,0.00040487,2]
[312780409,1706211040572,-150.1,0.00040511,2]
[312780410,1706211040581,-576.0,0.000407,30]
[312780411,1706211040591,-1000.0,0.00040743,10]
[312780412,1706211040600,-1927.97296688,0.00040851,10]
[312780413,1706211040610,-173.040148,0.000409,2]
[312780414,1706211040619,-353.0,0.00041079,14]
[312780415,1706211040628,-500.0,0.00041095,2]
[312780416,1706211040637,-157.894736,0.00041096,2]
[312780417,1706211040646,-353.0,0.00041425,90]
[312780418,1706211040655,-5000.0,0.00041779,15]
[312780419,1706211040665,-5000.0,0.00041779,15]
[312780420,1706211040674,-1406.58091057,0.000418,36]
[312780421,1706211040683,-173.040148,0.00041879,2]
[312780422,1706211040693,-163.92892093,0.00042,30]
[312780423,1706211040702,-10647.89188296,0.00042684,5]
[312780424,1706211040712,-173.040148,0.00042857,2]
[312780425,1706211040720,-777.0,0.00043134,2]
[312780426,1706211040730,-155.0,0.000434,2]
[312780427,1706211040740,-353.0,0.00043496,90]
[312780428,1706211040749,-500.0,0.00043835,31]
[312780429,1706211040758,-500.0,0.00043835,31]
[312780430,1706211040767,-500.0,0.00043835,7]
[312780431,1706211040776,-500.0,0.00043835,31]
[312780432,1706211040785,-902.17,0.00043835,31]
[312780433,1706211040795,-500.0,0.00043835,31]
[312780434,1706211040806,-500.0,0.00043835,31]
[312780435,1706211040815,-506.29407137,0.00043835,31]
[312780436,1706211040823,-500.0,0.00043835,31]
[312780437,1706211040833,-500.0,0.00043835,31]
[312780438,1706211040842,-500.0,0.00043835,31]
[312780439,1706211040851,-500.0,0.00043835,31]
[312780440,1706211040859,-500.0,0.00043835,31]
[312780441,1706211040868,-500.0,0.00043835,31]
[312780442,1706211040877,-579.97,0.00043835,31]
[312780443,1706211040886,-500.0,0.00043835,31]
[312780444,1706211040895,-477.2198806,0.00043835,7]
[312780445,1706211040904,-500.0,0.00043835,31]
[312780446,1706211040913,-500.0,0.00043835,31]
[312780447,1706211040921,-500.0,0.00043835,31]
[312780448,1706211040931,-284.78846293,0.00043835,2]
[312780478,1706211041391,-152.82367298,0.000249,2]
[312780480,1706211041402,-166.666666,0.00025916,2]
[312780482,1706211041411,-166.666666,0.00026623,2]
[312780484,1706211041420,-166.666666,0.00027329,2]
[312780486,1706211041429,-166.666666,0.00028036,2]
[312780487,1706211041439,-166.666666,0.00028743,2]
[312780489,1706211041448,-166.666666,0.00029449,2]
[312780490,1706211041458,-1244.68153707,0.00043835,2]
[312780491,1706211041467,-500.0,0.00043835,31]
[312780492,1706211041477,-500.0,0.00043835,31]
[312780493,1706211041486,-500.0,0.00043835,31]
[312780494,1706211041495,-500.0,0.00043835,31]
[312780495,1706211041504,-500.0,0.00043835,31]
[312780496,1706211041513,-23.88824115,0.00043835,31]
[312780601,1706212050107,154.98450155,0.00022477,4]
[312780606,1706212190090,154.98450155,0.00022999,4]
[312780809,1706212239406,-426.19756797,0.00022472,2]
[312780811,1706212239416,-500.0,0.00022472,2]
[312780813,1706212239425,-3970.33105698,0.00022472,2]
[312780815,1706212239435,-154.98450155,0.00022472,2]
[312780817,1706212239443,-1583.23422085,0.00022473,2]
[312780819,1706212239453,-166.666666,0.00022479,2]
[312780821,1706212239462,-168.353708,0.0002272,2]
[312780823,1706212239471,-2085.40450746,0.00022999,2]
[312780825,1706212239480,-1826.97153487,0.00022999,2]
[312780827,1706212239489,-300.0,0.00022999,2]
[312780828,1706212239498,-1416.02167727,0.00023,2]
[312780830,1706212239507,-166.666666,0.00023092,2]
[312780832,1706212239515,-24900.0,0.00023241,2]
[312780834,1706212239524,-168.416763,0.0002358,2]
[312780836,1706212239533,-166.666666,0.00023705,2]
[312780838,1706212239542,-166.666666,0.00024318,2]
[312780840,1706212239551,-200.0,0.00024725,7]
[312780842,1706212239560,-976.79905731,0.00024926,2]
[312780844,1706212239569,-154.98450155,0.00024926,4]
[312780846,1706212239578,-166.666666,0.00024931,2]
[312780848,1706212239587,-4725.91421399,0.00025,2]
[312780849,1706212239596,-7385.90525508,0.00025,2]
[312780850,1706212239606,-154.98450155,0.00025,2]
[312780851,1706212239615,-166.666666,0.00025544,2]
[312780852,1706212239623,-171.8218908,0.00026244,2]
[312780853,1706212239633,-290.53836744,0.00027,2]
[312780854,1706212239642,-280.0,0.00027198,15]
[312780855,1706212239651,-161.66762662,0.00027597,2]
[312780856,1706212239661,-22519.39,0.00027667,3]
[312780857,1706212239670,-27023.27,0.00027677,3]
[312780858,1706212239679,-1916.72029117,0.00027686,2]
[312780859,1706212239688,-154.98450155,0.00027686,2]
[312780860,1706212239697,-1198.71036477,0.00027686,2]
[312780861,1706212239706,-309.31860756,0.00027686,2]
[312780862,1706212239716,-311.91244819,0.00027687,2]
[312780863,1706212239725,-1266.95335862,0.00027687,2]
[312780864,1706212239735,-323.23376189,0.00027687,2]
[312780865,1706212239746,-421.27166736,0.00027687,2]
[312780866,1706212239756,-8653.83689169,0.00027687,2]
[312780867,1706212239766,-470.87385711,0.00027696,2]
[312780868,1706212239775,-2074.94658461,0.00027696,2]
[312780869,1706212239785,-4011.78855735,0.00027696,2]
[312780870,1706212239796,-713.25472283,0.00027697,2]
[312780871,1706212239806,-557.41463037,0.00027697,2]
[312780872,1706212239815,-276000.0,0.00027698,2]
[312780873,1706212239824,-199.3339408,0.00028493,2]
[312780874,1706212239834,-153.0,0.00028493,2]
[312780875,1706212239843,-230.3948546,0.00028556,2]
[312780876,1706212239852,-153.0,0.00028556,2]
[312780877,1706212239861,-153.0,0.00028556,2]
[312780878,1706212239871,-1932.44477539,0.00029,2]
[312780879,1706212239880,-154.98450155,0.00029,2]
[312780880,1706212239889,-153.0,0.00029178,2]
[312780881,1706212239898,-153.0,0.00029178,2]
[312780882,1706212239907,-153.0,0.00029178,2]
[312780883,1706212239916,-153.0,0.00029315,2]
[312780884,1706212239925,-153.0,0.00029315,2]
[312780885,1706212239934,-306.0,0.00029315,2]
[312780886,1706212239944,-153.0,0.00029315,2]
[312780887,1706212239953,-159.3657322,0.00029315,2]
[312780888,1706212239962,-199.3339408,0.00029315,2]
[312780889,1706212239971,-153.0,0.00029315,2]
[312780890,1706212239980,-153.0,0.00029315,2]
[312780891,1706212239990,-250.5513808,0.00029315,2]
[312780892,1706212240000,-199.3339408,0.00029315,2]
[312780893,1706212240009,-171.7059798,0.00029315,2]
[312780894,1706212240019,-153.0,0.00029315,2]
[312780895,1706212240028,-153.0,0.00029315,2]
[312780896,1706212240037,-153.0,0.00029315,2]
[312780897,1706212240046,-153.0,0.00029315,2]
[312780898,1706212240056,-153.0,0.00029315,2]
[312780899,1706212240065,-153.0,0.00029315,2]
[312780900,1706212240073,-153.0,0.00029315,2]
[312780901,1706212240082,-199.3339408,0.00029315,2]
[312780902,1706212240091,-153.0,0.00029589,2]
[312780903,1706212240100,-391.0,0.00029917,15]
[312780904,1706212240110,-350.0,0.00029999,2]
[312780905,1706212240119,-170.03961878,0.00029999,2]
[312780906,1706212240128,-500.0,0.00029999,2]
[312780907,1706212240137,-512.38921039,0.00029999,2]
[312780908,1706212240146,-500.0,0.00029999,2]
[312780909,1706212240155,-500.0,0.00029999,2]
[312780910,1706212240164,-500.0,0.00029999,2]
[312780911,1706212240173,-571.33828928,0.00029999,2]
[312780912,1706212240182,-377.65972868,0.00029999,2]
[312780913,1706212240191,-165.75185927,0.00029999,2]
[312780914,1706212240200,-500.0,0.00029999,2]
[312780915,1706212240209,-291.31420188,0.0003,3]
[312780916,1706212240218,-154.98450155,0.0003,4]
[312780917,1706212240227,-139264.62830083,0.0003,4]
[312780918,1706212240236,-688.78830185,0.0003,4]
[312780919,1706212240245,-2372.54255137,0.0003,2]
[312780920,1706212240254,-195.4790082,0.0003,2]
[312780921,1706212240263,-1000.0,0.0003,4]
[312780922,1706212240273,-244.31917233,0.0003,4]
[312780923,1706212240282,-155.74648817,0.0003,4]
[312780924,1706212240292,-202.0,0.0003,2]
[312780925,1706212240302,-153.0,0.00030137,2]
[312780926,1706212240311,-153.0,0.00030137,2]
[312780927,1706212240320,-153.0,0.00030137,2]
[312780928,1706212240329,-153.0,0.00030137,2]
[312780929,1706212240338,-153.0,0.00030137,2]
[312780930,1706212240347,-199.3339408,0.00030137,2]
[312780931,1706212240356,-153.0,0.00030137,2]
[312780932,1706212240365,-153.0,0.00030137,2]
[312780933,1706212240374,-199.3339408,0.00030137,2]
[312780934,1706212240383,-157.3764171,0.00030137,2]
[312780936,1706212240392,-199.3339408,0.00030137,2]
[312780937,1706212240401,-199.3339408,0.00030137,2]
[312780938,1706212240410,-199.3339408,0.00030137,2]
[312780939,1706212240419,-199.3339408,0.00030137,2]
[312780940,1706212240429,-199.3339408,0.00030137,2]
[312780941,1706212240437,-199.3339408,0.00030137,2]
[312780942,1706212240446,-199.3339408,0.00030137,2]
[312780944,1706212240455,-199.3339408,0.00030137,2]